bitfinex/quotes_ETHUSD_20260125
["timestamp","ask_amount","ask_price","bid_price","bid_amount"]
[1769368811204,0.738,2837.6,2835.4,0.88168951]
[1769368811381,0.738,2837.6,2835.5,0.10488777]
[1769368811706,0.738,2837.5,2835.6,0.88164762]
[1769368811924,1.30013414,2837.4,2835.7,0.44082381]
[1769368813611,1.30013414,2837.4,2835.8,0.88158544]
[1769368814407,1.30013414,2837.4,2836.0,0.10488777]
[1769368814607,1.30013414,2837.4,2835.8,0.88158544]
[1769368814608,1.30113414,2837.4,2835.8,0.88158544]
[1769368816694,0.001,2837.4,2836.4,0.10488777]
[1769368817214,0.001,2837.4,2835.9,0.84288777]
[1769368817414,0.001,2837.4,2835.9,0.738]
[1769368818117,0.001,2837.4,2836.0,0.88152327]
[1769368818429,0.001,2837.4,2835.9,0.88153479]
[1769368818607,0.001,2837.4,2836.3,0.10488777]
[1769368818917,0.001,2837.4,2835.9,0.88153479]
[1769368819122,0.001,2837.4,2836.0,0.44077688]
[1769368819296,11.50694834,2837.4,2835.8,0.88157511]
[1769368819498,11.50694834,2837.4,2835.8,0.88158536]
[1769368819695,11.50694834,2837.4,2835.8,0.88158491]
[1769368819899,11.50694834,2837.4,2835.9,0.88153992]
[1769368820210,11.50694834,2837.4,2835.8,3.52630491]
[1769368820413,1.23880123,2837.3,2835.9,0.55616558]
[1769368820590,0.001,2837.4,2835.9,0.55616558]
[1769368820791,0.001,2837.4,2836.1,0.10488777]
[1769368821008,0.001,2837.4,2836.3,0.10488777]
[1769368821522,0.001,2837.4,2836.5,0.10488777]
[1769368821823,0.001,2837.4,2836.1,0.10488777]
[1769368822002,0.001,2837.4,2836.2,0.8814611]
[1769368822195,0.001,2837.4,2836.2,0.98634887]
[1769368822392,0.001,2837.4,2836.4,0.10488777]
[1769368822726,0.001,2837.4,2836.4,11.44719624]
[1769368823404,0.001,2837.4,2836.2,0.98634887]
[1769368823596,0.001,2837.4,2836.3,0.45121933]
[1769368824098,0.001,2837.4,2836.4,0.88139895]
[1769368824601,0.001,2837.4,2836.4,0.98628672]
[1769368825894,0.001,2837.4,2836.4,0.88139895]
[1769368826096,0.001,2837.2,2836.4,0.98628672]
[1769368826295,0.001,2837.2,2836.5,0.49631218]
[1769368826595,11.50594834,2838.5,2836.6,0.10488777]
[1769368826794,11.50594834,2838.5,2836.9,0.10488777]
[1769368828159,3.96239683,2839.2,2837.2,0.9860382]
[1769368828160,12.38654067,2839.0,2837.2,0.9860382]
[1769368828449,1.36665407,2838.9,2837.3,0.45106399]
[1769368828818,1.23865407,2838.9,2837.3,0.45106399]
[1769368829142,1.32077982,2839.2,2837.4,11.34230847]
[1769368829342,12.82672816,2839.2,2837.3,1.18906399]
[1769368830314,12.82672816,2839.2,2837.3,2.07018015]
[1769368830544,12.82672816,2839.2,2837.1,3.52460172]
[1769368830545,11.50594834,2838.8,2836.8,11.34230847]
[1769368830743,18.671955,2838.7,2836.7,0.88129702]
[1769368830945,12.24394834,2838.8,2836.6,0.738]
[1769368830946,11.50594834,2838.4,2836.6,0.738]
[1769368831121,11.50594834,2838.4,2836.8,0.88127106]
[1769368831322,11.50594834,2838.4,2836.7,0.88128489]
[1769368831547,0.738,2838.8,2836.9,0.88123758]
[1769368831548,11.50594834,2838.2,2836.9,0.88123758]
[1769368831737,11.50594834,2838.2,2836.8,1.39573636]
[1769368831962,11.50594834,2838.2,2836.8,1.39573125]
[1769368832141,11.50594834,2838.2,2836.9,0.88123938]
[1769368832464,11.50594834,2838.2,2836.8,1.39571982]
[1769368832658,1.35373754,2838.1,2836.9,0.49209137]
[1769368833674,1.35373754,2838.1,2836.8,0.8812574]
[1769368833842,1.35373754,2838.1,2836.7,0.88128398]
[1769368834040,1.35373754,2838.1,2836.7,0.88130312]
[1769368834275,1.35373754,2838.1,2836.6,1.61931911]
[1769368834567,1.35373754,2838.1,2836.3,11.7935278]
[1769368834568,11.5128445,2837.9,2836.3,0.45121933]
[1769368834737,11.5128445,2837.9,2836.3,1.33262781]
[1769368834938,11.5128445,2837.9,2836.3,0.45121933]
[1769368835143,11.5128445,2837.9,2836.3,1.33264811]
[1769368835772,11.5128445,2837.9,2836.1,3.52596223]
[1769368835980,11.5128445,2837.9,2834.4,1.87323248]
[1769368835981,11.5128445,2836.1,2833.4,12.27938029]
[1769368836272,2.33945911,2836.0,2834.2,0.10488777]
[1769368836474,0.2335703,2835.9,2834.4,0.10488777]
[1769368836765,11.5128445,2835.7,2833.7,0.737]
[1769368836979,11.5128445,2835.5,2833.7,4.26588545]
[1769368837175,11.5128445,2835.5,2833.9,0.88217079]
[1769368837392,11.5128445,2835.5,2833.7,0.737]
[1769368837687,11.5128445,2835.1,2833.1,0.88241391]
[1769368837888,11.5128445,2835.1,2832.9,3.52994712]
[1769368838038,11.5128445,2834.7,2832.8,0.738]
[1769368838251,11.5128445,2834.7,2831.9,0.10488777]
[1769368838252,12.2508445,2834.7,2832.3,3.53058516]
[1769368838472,12.2508445,2834.7,2832.1,0.10488777]
[1769368838473,11.5128445,2834.3,2832.4,0.45794629]
[1769368838784,11.61773227,2832.9,2831.4,0.0199358]
[1769368838960,4.48389688,2833.3,2829.8,0.88345324]
[1769368838961,11.5128445,2832.5,2829.8,0.88345324]
[1769368839278,11.5128445,2832.5,2830.3,0.10488777]
[1769368839279,11.5128445,2831.7,2830.3,0.10488777]
[1769368839572,21.9640065,2832.6,2830.6,0.10488777]
[1769368839872,21.9640065,2832.6,2830.1,0.10488777]
[1769368839873,6.721466,2832.3,2830.1,0.10488777]
[1769368840054,11.5128445,2832.2,2829.3,0.10488777]
[1769368840255,11.5128445,2832.2,2829.1,0.88366663]
[1769368840256,11.5128445,2831.4,2829.1,0.88366663]
[1769368840455,11.5128445,2831.4,2827.8,3.53627954]
[1769368840456,11.5128445,2830.7,2827.9,0.88402924]
[1769368840688,11.5128445,2830.7,2826.8,0.10488777]
[1769368840689,0.10488777,2828.0,2825.7,0.0199358]
[1769368840884,11.5128445,2828.3,2825.7,0.8847321]
[1769368841194,11.5128445,2828.3,2824.9,0.88498188]
[1769368841195,11.7464148,2827.6,2824.9,0.88498188]
[1769368841349,11.61773227,2826.9,2824.1,0.00657741]
[1769368841546,15.22443,2826.2,2824.1,0.89181246]
[1769368841744,11.6408445,2827.0,2824.2,0.10488777]
[1769368841989,2.29478711,2826.9,2824.5,0.10488777]
[1769368842165,0.739,2826.9,2825.7,0.88473503]
[1769368842364,11.5128445,2827.8,2825.2,0.10488777]
[1769368842365,0.739,2827.3,2825.5,0.88478639]
[1769368842596,0.739,2827.3,2825.3,0.98974893]
[1769368842874,2.19732,2827.6,2825.3,0.88486116]
[1769368843082,3.980174,2828.0,2825.4,0.10488777]
[1769368843246,9.143554,2827.3,2825.3,0.88485601]
[1769368843577,0.10488777,2827.1,2825.0,0.88494613]
[1769368843797,11.61773227,2827.1,2824.1,3.54747336]
[1769368844090,6.130766,2826.6,2824.0,0.03]
[1769368844299,11.61773227,2826.1,2824.0,0.03]
[1769368844610,11.61773227,2826.1,2823.1,0.10488777]
[1769368844611,11.5128445,2825.3,2823.1,0.10488777]
[1769368844889,15.54253027,2825.8,2823.0,7.57218289]
[1769368845099,0.10488777,2825.1,2823.0,4.0298678]
[1769368845275,0.10488777,2825.5,2822.8,0.10488777]
[1769368845276,0.05,2825.5,2822.8,0.10488777]
[1769368845442,0.05,2825.5,2822.6,0.10488777]
[1769368845443,0.10488777,2825.5,2823.0,3.54227675]
[1769368845648,0.10488777,2826.0,2823.1,0.35422768]
[1769368845649,0.10488777,2825.9,2823.1,0.35422768]
[1769368845857,4.970969,2826.9,2824.5,0.10488777]
[1769368846076,3.53518374,2828.8,2824.5,0.10488777]
[1769368846077,0.11688777,2829.4,2826.3,0.10488777]
[1769368846286,2.641883,2829.3,2827.1,0.10488777]
[1769368846491,5.311487,2829.1,2826.7,4.33513772]
[1769368846761,5.311487,2829.1,2826.6,0.88445482]
[1769368846762,0.10488777,2829.2,2826.6,0.88445482]
[1769368847000,0.10488777,2828.6,2826.6,0.88445482]
[1769368847193,0.10488777,2828.6,2825.9,3.5386841]
[1769368847359,6.579136,2828.8,2826.5,0.88447451]
[1769368847887,0.10488777,2828.0,2824.8,12.38426806]
[1769368848086,0.10488777,2827.7,2825.4,3.53931147]
[1769368848291,0.10488777,2828.6,2826.5,0.88447869]
[1769368848491,0.10488777,2828.6,2825.5,12.38426806]
[1769368848492,0.10488777,2829.2,2826.3,12.27938029]
[1769368848672,11.6608445,2829.8,2826.3,12.27938029]
[1769368848673,0.10488777,2829.0,2826.7,0.10488777]
[1769368848868,0.15488777,2830.0,2826.7,0.10488777]
[1769368848869,0.10488777,2830.4,2827.7,0.10488777]
[1769368849198,2.095772,2830.3,2827.8,0.10488777]
[1769368849367,3.931359,2830.4,2827.8,0.10488777]
[1769368849558,0.10488777,2830.1,2827.3,0.10488777]
[1769368849754,0.10488777,2830.1,2827.5,0.10488777]
[1769368850358,0.10488777,2829.5,2826.8,0.10488777]
[1769368850615,0.10488777,2829.8,2827.5,0.10488777]
[1769368850815,0.10488777,2830.1,2827.9,0.10488777]
[1769368850958,0.10488777,2830.1,2827.4,0.88420456]
[1769368851291,0.10488777,2829.8,2827.5,0.44210228]
[1769368852395,9.779144,2829.3,2827.5,0.44210228]
[1769368852703,0.10488777,2827.9,2825.2,0.10488777]
[1769368852863,8.514024,2827.5,2825.5,0.88478159]
[1769368853065,0.8514024,2827.4,2825.1,0.10488777]
[1769368853408,0.10488777,2828.3,2826.5,0.88448052]
[1769368853567,0.128,2828.5,2826.6,0.88445358]
[1769368853766,8.56045,2828.4,2826.6,0.88445358]
[1769368853995,0.128,2828.5,2826.7,0.88441248]
[1769368854199,0.10488777,2828.2,2825.3,0.10488777]
[1769368854377,0.10488777,2828.2,2826.2,0.88457252]
[1769368854695,0.128,2828.7,2826.2,3.53831543]
[1769368855006,0.128,2828.7,2826.2,0.10488777]
[1769368855591,0.23288777,2828.9,2826.6,0.10488777]
[1769368855891,0.128,2828.9,2826.6,0.10488777]
[1769368856094,0.10488777,2829.3,2827.0,0.10488777]
[1769368856295,0.10488777,2829.6,2827.0,0.10488777]
[1769368856296,0.10488777,2829.6,2827.2,0.10488777]
[1769368856499,12.2528445,2830.1,2827.7,0.88411076]
[1769368856669,12.2528445,2830.1,2827.8,0.45254416]
[1769368856670,1.22528445,2830.0,2827.8,0.45254416]
[1769368856871,1.22528445,2830.0,2827.8,0.55743193]
[1769368857088,1.0,2829.9,2828.0,0.10488777]
[1769368857291,0.10488777,2830.4,2828.2,0.10488777]
[1769368857476,4.614994,2830.3,2828.2,0.10488777]
[1769368857688,0.47198818,2830.2,2828.5,0.10488777]
[1769368857883,11.340296,2831.1,2828.0,0.10488777]
[1769368858197,11.340296,2831.1,2827.8,0.55743193]
[1769368858198,0.128,2830.7,2828.3,0.10488777]
[1769368858397,0.128,2830.7,2827.8,0.45254416]
[1769368858398,0.10488777,2829.8,2827.8,0.45254416]
[1769368858598,0.10488777,2828.7,2826.0,12.27938029]
[1769368858768,0.10488777,2828.7,2826.7,0.88441969]
[1769368858769,2.5326,2828.3,2826.7,0.88441969]
[1769368859097,2.5326,2828.3,2826.0,16.5578619]
[1769368859098,0.26374878,2828.2,2826.9,0.88433954]
[1769368859295,0.10488777,2829.5,2826.9,0.88433954]
[1769368859496,0.10488777,2829.5,2826.9,0.98922731]
[1769368859673,0.128,2829.4,2827.1,0.10488777]
[1769368860074,0.128,2829.4,2826.9,0.98922731]
[1769368860270,0.10488777,2829.5,2827.3,0.10488777]
[1769368860470,11.5128445,2830.6,2828.1,0.10488777]
[1769368860676,1.16177323,2830.5,2828.4,0.10488777]
[1769368860894,6.763259,2830.9,2828.3,0.10488777]
[1769368861084,0.10488777,2831.7,2829.3,0.10488777]
[1769368861288,0.10488777,2831.9,2829.5,0.10488777]
[1769368861589,0.10488777,2831.9,2829.4,0.10488777]
[1769368861793,0.18311991,2832.5,2830.4,0.10488777]
[1769368862102,0.18311991,2832.5,2830.6,0.10488777]
[1769368862304,0.10488777,2832.9,2830.5,0.74]
[1769368862503,0.10488777,2832.6,2830.5,0.74]
[1769368862711,0.88251906,2832.8,2830.6,0.98809274]
[1769368863004,3.856735,2832.7,2830.0,0.10488777]
[1769368863190,3.71334213,2833.1,2831.5,0.10488777]
[1769368863191,0.18326589,2833.1,2831.5,0.10488777]
[1769368863392,0.10488777,2834.5,2831.9,0.10488777]
[1769368863717,1.30265871,2833.7,2832.4,0.10488777]
[1769368863875,1.30265871,2833.7,2831.9,12.39996645]
[1769368864197,1.30265871,2833.7,2832.0,1.23999665]
[1769368864373,1.30265871,2833.7,2830.5,0.98811909]
[1769368864374,0.10488777,2833.1,2830.8,0.74]
[1769368864573,1.40754648,2833.7,2831.2,0.8830178]
[1769368864797,2.28978932,2833.7,2831.2,0.8830178]
[1769368865000,1.29911871,2833.7,2831.5,0.10488777]
[1769368865205,1.29911871,2833.7,2831.9,0.10488777]
[1769368865390,0.98656758,2835.5,2833.0,0.10488777]
[1769368865590,0.98656758,2835.5,2833.1,0.74]
[1769368865903,3.70972893,2835.8,2833.5,0.10488777]
[1769368865904,0.18326689,2835.8,2833.5,0.10488777]
[1769368866226,0.84488777,2837.0,2833.8,0.10488777]
[1769368866227,10.17008288,2836.5,2833.8,0.10488777]
[1769368866376,1.03533365,2836.4,2834.2,0.10488777]
[1769368866576,0.10488777,2836.5,2834.1,0.88211425]
[1769368866788,0.88132998,2836.7,2834.1,0.98700202]
[1769368866992,0.10488777,2836.5,2834.1,0.98700202]
[1769368867198,0.10488777,2836.5,2834.1,0.88211425]
[1769368867512,0.10488777,2836.5,2834.3,0.10488777]
[1769368867674,0.88111937,2837.3,2835.1,0.10488777]
[1769368867873,0.15488777,2838.2,2835.1,0.10488777]
[1769368867874,0.88102621,2837.6,2835.3,0.10488777]
[1769368868112,0.44061311,2837.5,2835.7,0.10488777]
[1769368868326,0.88199759,2837.7,2835.5,0.84488777]
[1769368868534,0.001,2837.7,2835.7,0.10488777]
[1769368868819,0.05,2838.9,2835.5,0.84488777]
[1769368868820,0.10488777,2838.5,2836.0,0.88152327]
[1769368869032,0.10488777,2838.2,2836.0,0.88152327]
[1769368869357,2.854309,2837.5,2834.5,12.29507868]
[1769368869631,0.10488777,2837.1,2835.0,0.88181888]
[1769368869841,2.126777,2836.8,2834.3,3.63308233]
[1769368869995,2.002263,2836.8,2834.5,0.10488777]
[1769368870193,0.10488777,2836.6,2834.2,0.74]
[1769368870395,0.61448788,2836.6,2834.4,0.10488777]
[1769368870588,0.88133681,2836.6,2834.5,0.10488777]
[1769368870841,0.88133681,2836.6,2834.6,0.10488777]
[1769368870995,0.88124357,2837.0,2835.0,0.10488777]
[1769368871194,0.88124357,2837.0,2834.8,0.10488777]
[1769368871195,5.896058,2836.9,2834.3,0.88203071]
[1769368871433,7.43155677,2836.8,2834.3,0.88204706]
[1769368871643,26.301957,2836.5,2834.2,0.74]
[1769368871924,4.801546,2836.4,2834.2,0.74]
[1769368872227,0.75595568,2836.7,2834.7,0.88190759]
[1769368872523,0.88124357,2837.0,2834.8,0.10488777]
[1769368872524,0.128,2836.9,2834.8,0.10488777]
[1769368872735,0.128,2836.7,2834.7,0.88192241]
[1769368872890,0.128,2836.7,2834.7,0.88191457]
[1769368873091,0.88127467,2836.8,2834.3,0.10488777]
[1769368873400,0.88127467,2836.8,2834.8,0.88189012]
[1769368873712,0.44063734,2836.7,2834.8,1.33335001]
[1769368873910,0.88124854,2836.9,2834.8,1.33335001]
[1769368873911,0.88124854,2836.9,2834.9,0.10488777]
[1769368874093,0.88124854,2836.9,2834.8,1.33335001]
[1769368874290,0.88124854,2836.9,2834.8,0.45145989]
[1769368874521,0.001,2836.2,2834.7,0.88192582]
[1769368874698,0.001,2836.2,2834.3,0.10488777]
[1769368874699,0.001,2836.2,2834.4,0.88202088]
[1769368874900,0.001,2836.2,2833.8,0.10488777]
[1769368875127,0.001,2836.2,2833.5,3.52916401]
[1769368875128,7.050281,2836.0,2833.5,3.52916401]
[1769368875326,15.0,2836.0,2833.8,0.10488777]
[1769368875514,1.5,2835.9,2833.8,0.88219604]
[1769368875826,5.072303,2836.1,2834.3,0.88204879]
[1769368875996,5.072303,2836.1,2833.9,3.63358657]
[1769368875997,9.483252,2836.1,2833.9,0.88216803]
[1769368876196,7.548252,2836.1,2834.0,0.88213056]
[1769368876418,7.548252,2836.1,2834.3,0.05]
[1769368876794,0.88152327,2836.0,2834.3,0.05]
[1769368876998,1.19558684,2835.9,2834.3,0.05]
[1769368877231,5.512768,2835.9,2834.3,0.05]
[1769368877810,5.512768,2835.9,2833.6,0.10488777]
[1769368877811,0.10488777,2835.6,2833.0,1.62143053]
[1769368878013,0.10488777,2835.3,2833.7,0.05]
[1769368878222,0.10488777,2835.3,2832.3,3.53062811]
[1769368878223,0.128,2834.9,2833.3,0.05]
[1769368878550,0.2335703,2835.4,2833.3,0.05]
[1769368878724,5.383316,2835.1,2833.3,0.05]
[1769368879031,0.5511316,2835.0,2834.2,0.05]
[1769368879237,0.88182668,2835.1,2833.7,0.05]
[1769368879422,0.88182668,2835.1,2833.0,3.52981768]
[1769368879423,0.8730127,2835.1,2833.3,0.05]
[1769368879601,15.25801595,2835.8,2833.9,0.05]
[1769368879802,0.128,2835.8,2834.1,0.05]
[1769368880034,0.128,2835.8,2834.0,0.05]
[1769368880035,3.198943,2835.7,2834.0,0.05]
[1769368880205,3.198943,2835.7,2833.4,0.88233218]
[1769368880206,26.251957,2835.2,2833.3,0.05]
[1769368880410,2.641117,2835.2,2833.6,0.05]
[1769368880939,5.413709,2835.0,2833.3,0.05]
[1769368881240,0.128,2834.9,2833.3,0.05]
[1769368882211,0.10488777,2835.0,2833.3,0.05]
[1769368882212,0.128,2835.0,2833.3,0.05]
[1769368882736,0.88180311,2835.1,2833.3,0.93235566]
[1769368882937,0.44090156,2835.0,2833.6,0.05]
[1769368883115,9.16712,2835.3,2833.6,0.05]
[1769368883518,7.27867,2835.3,2833.3,0.05]
[1769368883722,3.266907,2835.1,2833.3,0.05]
[1769368884053,0.10488777,2835.3,2833.6,0.05]
[1769368884054,2.530149,2835.2,2833.6,0.05]
[1769368884563,0.88170981,2835.4,2834.2,0.05]
[1769368884707,0.54085491,2835.3,2834.0,0.05]
[1769368884908,1.42261715,2835.3,2834.0,0.05]
[1769368885161,10.596968,2835.2,2833.6,0.05]
[1769368885323,4.780944,2835.2,2833.4,0.05]
[1769368885509,11.189493,2835.0,2833.4,0.05]
[1769368885708,1.1189493,2834.9,2833.7,0.05]
[1769368885915,0.128,2835.2,2833.7,0.05]
[1769368886238,1.42261715,2835.3,2833.9,0.05]
[1769368886239,0.54085491,2835.3,2833.9,0.05]
[1769368886447,0.3326943,2835.6,2834.2,0.05]
[1769368886448,0.8817294,2835.4,2834.2,0.05]
[1769368886742,0.001,2835.1,2834.7,0.05]
[1769368886942,0.001,2835.1,2834.4,0.05]
[1769368887144,0.001,2835.1,2834.0,0.05]
[1769368887349,0.001,2835.1,2834.3,0.05]
[1769368887848,0.001,2835.1,2834.1,0.05]
[1769368888214,0.001,2835.1,2834.3,0.05]
[1769368888645,0.001,2835.1,2833.9,0.05]
[1769368888829,0.001,2835.1,2834.2,0.05]
[1769368890122,0.001,2835.1,2833.5,0.002]
[1769368890967,0.001,2835.1,2834.2,0.05]
[1769368891276,0.001,2835.1,2833.9,0.88216887]
[1769368891277,0.001,2835.1,2833.9,0.05]
[1769368891429,0.001,2835.1,2834.2,0.05]
[1769368891771,0.128,2834.9,2833.5,0.002]
[1769368892059,3.38443835,2834.8,2833.5,0.002]
[1769368892269,12.85954983,2834.9,2833.5,0.002]
[1769368892832,0.88189643,2834.8,2833.5,0.002]
[1769368893282,1.88188493,2834.9,2833.5,0.002]
[1769368893441,0.001,2835.1,2833.5,0.002]
[1769368893982,0.8828132,2835.1,2833.5,0.002]
[1769368894479,0.44099946,2835.0,2833.5,0.002]
[1769368894628,4.436421,2834.9,2833.5,0.002]
[1769368894826,0.88192754,2834.7,2833.5,0.002]
[1769368895041,0.10488777,2833.6,2832.1,0.00100097]
[1769368895270,0.10488777,2833.6,2832.2,0.88268399]
[1769368895474,0.10488777,2833.6,2832.1,0.00100097]
[1769368895644,0.10488777,2833.6,2832.2,0.88270598]
[1769368895968,0.10488777,2833.6,2832.1,0.00100097]
[1769368896177,0.10488777,2833.6,2832.1,0.88373486]
[1769368896357,0.10488777,2833.6,2832.1,0.00100097]
[1769368896882,0.10488777,2833.6,2832.1,0.88373045]
[1769368897031,0.10488777,2833.3,2832.1,0.00100097]
[1769368897464,0.10488777,2833.2,2832.1,0.00100097]
[1769368897767,1.0,2833.4,2832.1,0.00100097]
[1769368897966,0.1882301,2833.3,2832.1,0.00100097]
[1769368898394,0.29311787,2833.3,2832.1,0.00100097]
[1769368898541,0.10488777,2833.2,2832.1,0.00100097]
[1769368898875,0.1882301,2833.3,2832.1,0.00100097]
[1769368899078,0.1882301,2833.3,2832.3,0.002]
[1769368899248,0.10488777,2833.6,2832.3,0.002]
[1769368901558,0.88230104,2833.5,2832.3,0.002]
[1769368901747,0.10488777,2833.6,2832.3,0.002]
[1769368902083,0.10488777,2833.9,2832.3,0.002]
[1769368902475,0.98706856,2833.9,2832.3,0.002]
[1769368902672,0.10488777,2833.9,2832.3,0.002]
[1769368903072,0.98706472,2833.9,2832.3,0.002]
[1769368903278,0.45157707,2833.8,2832.3,0.002]
[1769368903996,0.10488777,2833.6,2832.3,0.002]
[1769368904365,0.10488777,2833.3,2832.3,0.002]
[1769368904600,0.10488777,2833.0,2832.3,0.002]
[1769368904766,0.10488777,2832.4,2831.4,0.002]
[1769368905091,0.10488777,2832.5,2831.4,0.002]
[1769368905464,0.10488777,2833.1,2831.4,0.002]
[1769368905465,0.10488777,2833.1,2831.7,0.88284367]
[1769368905667,0.98732564,2833.1,2831.4,0.002]
[1769368905971,0.45168341,2833.1,2831.4,0.002]
[1769368906177,0.10488777,2833.0,2831.4,0.002]
[1769368907191,0.8822699,2833.6,2831.4,0.002]
[1769368907390,0.8822598,2833.7,2831.4,0.002]
[1769368908775,0.88198602,2834.6,2831.9,12.63499878]
[1769368908969,0.98687936,2834.5,2832.1,12.63499878]
[1769368909167,0.10488777,2834.2,2832.2,1.26349988]
[1769368909388,1.0,2834.3,2832.2,1.26349988]
[1769368909679,1.0,2834.3,2832.2,14.00338643]
[1769368909881,0.10488777,2834.5,2832.3,13.51767363]
[1769368910083,0.98690497,2834.5,2832.3,13.51767363]
[1769368910294,0.4514761,2834.4,2832.4,1.84167607]
[1769368910696,0.98688072,2834.5,2832.4,1.84167607]
[1769368910998,0.88186532,2834.9,2832.4,14.58156262]
[1769368911302,0.88186532,2834.9,2832.4,1.84167607]
[1769368911303,0.10488777,2834.7,2832.4,1.84167607]
[1769368911599,0.10488777,2834.7,2832.3,0.88267485]
[1769368911600,6.294693,2834.6,2832.3,0.88267485]
[1769368911808,0.88198976,2834.5,2832.3,0.88267485]
[1769368912319,0.10488777,2834.4,2832.3,0.88267485]
[1769368912474,6.836624,2834.3,2832.3,0.88267485]
[1769368912678,0.10488777,2834.1,2832.3,0.88267485]
[1769368912902,0.10488777,2834.1,2832.3,1.32401228]
[1769368913080,11.91522169,2833.8,2831.4,0.002]
[1769368913297,11.91522169,2833.8,2831.9,0.88278417]
[1769368913596,11.91522169,2833.8,2832.0,0.88276823]
[1769368913969,0.88223876,2833.7,2831.5,3.63654539]
[1769368914301,0.128,2834.2,2831.9,0.10488777]
[1769368914302,2.27974605,2833.6,2831.9,0.10488777]
[1769368914501,0.88219446,2833.9,2831.9,0.10488777]
[1769368914696,0.88216379,2834.0,2831.9,0.10488777]
[1769368914901,0.88209973,2834.2,2831.7,12.73988655]
[1769368915093,0.88209973,2834.2,2831.9,0.10488777]
[1769368915288,0.44104162,2834.1,2831.9,1.3893652]
[1769368915703,0.54592939,2834.1,2831.9,1.28447743]
[1769368915905,0.88214537,2834.0,2832.0,0.88276836]
[1769368916120,0.10488777,2833.8,2832.0,0.88276836]
[1769368916613,0.10488777,2833.8,2831.6,3.98368742]
[1769368916614,11.91522169,2833.6,2831.6,0.45215008]
[1769368916778,6.585005,2833.5,2831.1,12.63699878]
[1769368916973,17.79725192,2833.5,2831.1,12.63699878]
[1769368917186,11.91522169,2833.3,2831.6,0.88288807]
[1769368917597,11.91522169,2833.3,2831.4,3.53373609]
[1769368917598,11.91522169,2833.3,2831.7,0.88285419]
[1769368917894,0.88239446,2833.2,2831.4,0.002]
[1769368918107,1.6327194,2833.1,2831.4,0.002]
[1769368919290,1.0,2832.9,2831.4,0.002]
[1769368920110,1.88249828,2832.9,2831.4,0.002]
[1769368920617,1.0,2832.9,2831.4,0.002]
[1769368920800,0.88249159,2832.9,2831.4,0.002]
[1769368921116,0.44123732,2832.8,2831.4,0.002]
[1769368921327,11.81033392,2832.6,2829.6,0.128]
[1769368921506,11.81033392,2831.3,2828.3,12.63499878]
[1769368921698,11.81033392,2830.9,2828.3,12.63499878]
[1769368921904,1.99369193,2830.8,2828.6,0.10488777]
[1769368922104,2.73456044,2830.8,2829.2,0.10488777]
[1769368922307,2.87683559,2830.8,2829.0,0.10488777]
[1769368922490,1.99369193,2830.8,2829.4,0.10488777]
[1769368922819,1.99369193,2830.8,2829.2,0.10488777]
[1769368922820,0.2335703,2831.2,2829.5,0.03510747]
[1769368922985,0.128,2831.3,2829.5,0.03510747]
[1769368923189,13.43225816,2831.5,2829.4,0.10488777]
[1769368923398,11.81033392,2831.5,2829.6,0.10488777]
[1769368923598,0.128,2831.8,2829.6,0.10488777]
[1769368923599,0.128,2831.8,2830.0,0.10488777]
[1769368923803,3.285927,2832.0,2831.6,0.002]
[1769368924030,1.66302463,2831.9,2830.5,0.88323617]
[1769368924221,0.128,2832.4,2830.6,0.10488777]
[1769368924528,13.34410739,2832.7,2831.4,0.002]
[1769368924821,2.50778,2832.5,2831.4,0.002]
[1769368925119,0.128,2832.6,2831.4,0.002]
[1769368925525,0.3615703,2832.6,2831.4,0.002]
[1769368925722,1.37056777,2832.5,2831.4,0.002]
[1769368926128,0.88267485,2832.3,2831.4,0.002]
[1769368926628,0.88267485,2832.3,2830.4,0.88325297]
[1769368926928,0.88267485,2832.3,2830.2,3.64017871]
[1769368926929,12.46155463,2832.1,2830.2,0.002]
[1769368927234,12.46155463,2831.8,2830.2,0.002]
[1769368927436,0.2335703,2831.6,2830.2,0.002]
[1769368927603,0.128,2831.5,2830.2,0.002]
[1769368928214,0.88295542,2831.4,2830.2,0.002]
[1769368928410,1.94702773,2831.7,2830.2,0.002]
[1769368928613,0.88274886,2832.1,2830.5,0.10488777]
[1769368928829,0.88274886,2832.1,2830.2,0.002]
[1769368929035,2.573542,2831.9,2830.2,0.002]
[1769368929232,0.80925764,2831.8,2830.2,0.002]
[1769368929405,0.128,2831.7,2830.2,0.002]
[1769368929603,1.0,2831.9,2829.7,0.10488777]
[1769368929604,1.28231249,2831.6,2829.7,0.10488777]
[1769368929810,12.46155463,2832.0,2830.1,0.10488777]
[1769368929811,0.128,2831.8,2830.1,0.10488777]
[1769368930211,12.46155463,2831.4,2828.5,1.62284082]
[1769368930539,0.128,2830.5,2828.2,0.98882501]
[1769368930725,1.28231249,2830.4,2829.0,0.98856835]
[1769368931031,0.128,2830.6,2828.6,0.10488777]
[1769368931220,0.2335703,2831.5,2829.4,0.10488777]
[1769368931420,0.128,2831.5,2829.8,0.10488777]
[1769368931636,12.46155463,2832.4,2830.2,0.10488777]
[1769368931946,0.88267485,2832.3,2830.6,0.10488777]
[1769368932230,0.88273719,2832.1,2830.4,0.98814963]
[1769368932435,0.88273719,2832.1,2829.6,0.10488777]
[1769368932436,0.128,2831.8,2829.4,0.10488777]
[1769368932617,0.128,2831.8,2829.8,0.88345347]
[1769368932815,0.88273719,2832.1,2830.5,0.10488777]
[1769368933134,0.61751672,2832.0,2830.4,0.88326405]
[1769368933335,0.128,2832.2,2830.3,0.10488777]
[1769368933507,5.580637,2832.1,2830.2,0.88332931]
[1769368933813,0.88265763,2832.4,2830.5,0.10488777]
[1769368934017,0.88265763,2832.4,2830.4,0.8832592]
[1769368934018,0.128,2832.2,2830.4,0.88326603]
[1769368934209,0.88273719,2832.1,2830.3,0.88327848]
[1769368934408,0.45416859,2832.0,2830.3,0.10488777]
[1769368934726,1.45416859,2832.0,2830.3,0.98816711]
[1769368934915,1.45416859,2832.0,2830.3,0.98818491]
[1769368935115,0.45416859,2832.0,2830.4,0.883264]
[1769368935317,0.45416859,2832.0,2830.3,0.98816417]
[1769368935533,0.45416859,2832.0,2830.3,0.46264776]
[1769368935847,0.45416859,2832.0,2830.3,0.88329241]
[1769368936053,0.45416859,2832.0,2830.6,0.002]
[1769368936553,3.53071067,2832.3,2830.7,0.10488777]